[Event "Queens Festival Final Team 2022"]
[Site "Tornelo"]
[Date "2022.06.26"]
[Round "1.4"]
[White "Banda Tapiwa"]
[Black "Jiang, Tianyu"]
[Result "0-1"]
[ECO "B40"]
[WhiteElo "1213"]
[BlackElo "1502"]
[Annotator "NA RC"]
[PlyCount "92"]
[EventDate "2022.06.24"]
[EventType "team-tourn"]
[EventCountry "NET"]
[SourceTitle "playchess.com"]
[Source "ChessBase"]
[SourceQuality "1"]
[WhiteTeam "MAW"]
[BlackTeam "China"]
[BlackTeamCountry "CHN"]
[TimeControl "180+2"]

1. e4 {[%emt 0:00:02]} c5 {[%emt 0:00:06]} 2. Nf3 {[%emt 0:00:03]} e6 {[%emt 0:00:01]} 3. Bc4 {[%emt 0:00:02]} a6 {[%emt 0:00:02]} 4. a3 {[%emt 0:00:01]} b5 {[%emt 0:00:01]} 5. Ba2 {[%emt 0:00:02]} Bb7 {[%emt 0:00:01]} 6. d3 {[%emt 0:00:03]} Nc6 {[%emt 0:00:02]} 7. O-O {[%emt 0:00:04]} d6 {[%emt 0:00:04]} 8. c4 {[%emt 0:00:06]} Nf6 {[%emt 0:00:02]} 9. Bg5 {[%emt 0:00:05]} Be7 {[%emt 0:00:03]} 10. Nbd2 {[%emt 0:00:06]} h6 {[%emt 0:00:02]} 11. Be3 {[%emt 0:00:04]} O-O {[%emt 0:00:02]} 12. Qc1 {[%emt 0:00:07]} Ng4 {[%emt 0:00:02]} 13. h3 {[%emt 0:00:06]} Nxe3 {[%emt 0:00:02]} 14. fxe3 {[%emt 0:00:02]} Bf6 {[%emt 0:00:03]} 15. Rb1 {[%emt 0:00:04]} b4 {[%emt 0:00:04]} 16. a4 {[%emt 0:00:11]} Qd7 {[%emt 0:00:28]} 17. b3 {[%emt 0:00:01]} Rfd8 {[%emt 0:00:03]} 18. Rf2 {[%emt 0:00:21]} Ne5 {[%emt 0:00:03]} 19. Nxe5 {[%emt 0:00:04]} dxe5 {[%emt 0:00:02]} 20. Qc2 {[%emt 0:00:09]} Qxd3 {[%emt 0:00:02]} 21. Qxd3 {[%emt 0:00:03]} Rxd3 {[%emt 0:00:00]} 22. Re2 {[%emt 0:00:06]} Rad8 {[%emt 0:00:03]} 23. Rd1 {[%emt 0:00:03]} Bg5 {[%emt 0:00:03]} 24. Bb1 {[%emt 0:00:06]} Bxe3+ {[%emt 0:00:01]} 25. Kf1 {[%emt 0:00:04]} Rxd2 {[%emt 0:00:02]} 26. Rexd2 {[%emt 0:00:03]} Rxd2 {[%emt 0:00:03]} 27. Rxd2 {[%emt 0:00:01]} Bxd2 {[%emt 0:00:01]} 28. Ke2 {[%emt 0:00:02]} Bc3 {[%emt 0:00:01]} 29. Kf3 {[%emt 0:00:03]} Kf8 {[%emt 0:00:02]} 30. g4 {[%emt 0:00:02]} Ke7 {[%emt 0:00:02]} 31. Bc2 {[%emt 0:00:02]} g6 {[%emt 0:00:02]} 32. h4 {[%emt 0:00:03]} f5 {[%emt 0:00:01]} 33. gxf5 {[%emt 0:00:02]} exf5 {[%emt 0:00:02]} 34. Ke3 {[%emt 0:00:06]} f4+ {[%emt 0:00:04]} 35. Kf3 {[%emt 0:00:02]} g5 {[%emt 0:00:01]} 36. hxg5 {[%emt 0:00:02]} hxg5 {[%emt 0:00:00]} 37. Kg4 {[%emt 0:00:01]} Kf6 {[%emt 0:00:02]} 38. Kh5 {[%emt 0:00:05]} Bc8 {[%emt 0:00:02]} 39. Bd1 {[%emt 0:00:06]} Bd2 {[%emt 0:00:14]} 40. Bf3 {[%emt 0:00:04]} Be6 {[%emt 0:00:08]} 41. Bg4 {[%emt 0:00:08]} Bxg4+ {[%emt 0:00:03]} 42. Kxg4 {[%emt 0:00:02]} Kg6 {[%emt 0:00:01]} 43. Kh3 {[%emt 0:00:03]} Kh5 {[%emt 0:00:01]} 44. Kg2 {[%emt 0:00:02]} g4 {[%emt 0:00:02]} 45. Kf2 {[%emt 0:00:02]} g3+ {[%emt 0:00:02]} 46. Kg2 {[%emt 0:00:02]} Kg4 {[%emt 0:00:01]} 0-1

[Event "Queens Festival Final Team 2022"]
[Site "Tornelo"]
[Date "2022.06.26"]
[Round "1.5"]
[White "Davari, Sara"]
[Black "Francis, Onkemetse"]
[Result "1-0"]
[ECO "C01"]
[WhiteElo "1674"]
[BlackElo "1777"]
[Annotator "NA RC"]
[PlyCount "99"]
[EventDate "2022.06.24"]
[EventType "team-tourn"]
[EventCountry "NET"]
[SourceTitle "playchess.com"]
[Source "ChessBase"]
[SourceQuality "1"]
[WhiteTeam "Iran"]
[BlackTeam "Botswana"]
[WhiteTeamCountry "IRI"]
[BlackTeamCountry "BOT"]
[TimeControl "180+2"]

1. e4 {[%emt 0:00:02]} e6 {[%emt 0:00:07]} 2. d4 {[%emt 0:00:02]} d5 {[%emt 0:00:02]} 3. Nc3 {[%emt 0:00:01]} Bb4 {[%emt 0:00:05]} 4. exd5 {[%emt 0:00:01]} exd5 {[%emt 0:00:02]} 5. Bd3 {[%emt 0:00:02]} Ne7 {[%emt 0:00:04]} 6. Nf3 {[%emt 0:00:02]} O-O {[%emt 0:00:03]} 7. O-O {[%emt 0:00:01]} Bf5 {[%emt 0:00:13]} 8. a3 {[%emt 0:00:15]} Ba5 {[%emt 0:00:26]} 9. Bg5 {[%emt 0:00:07]} Bxd3 {[%emt 0:00:05]} 10. Qxd3 {[%emt 0:00:04]} c6 {[%emt 0:00:04]} 11. Rfe1 {[%emt 0:00:05]} f6 {[%emt 0:00:03]} 12. Bh4 {[%emt 0:00:02]} Bc7 {[%emt 0:00:06]} 13. Bg3 {[%emt 0:00:02]} Bxg3 {[%emt 0:00:04]} 14. hxg3 {[%emt 0:00:02]} Ng6 {[%emt 0:00:02]} 15. Qf5 {[%emt 0:00:11]} Qd7 {[%emt 0:00:08]} 16. Qh5 {[%emt 0:00:13]} Na6 {[%emt 0:00:13]} 17. Ne2 {[%emt 0:00:04]} Rae8 {[%emt 0:00:05]} 18. Nf4 {[%emt 0:00:03]} Nxf4 {[%emt 0:00:04]} 19. gxf4 {[%emt 0:00:01]} Qf7 {[%emt 0:00:07]} 20. Qg4 {[%emt 0:00:32]} Qg6 {[%emt 0:00:15]} 21. Qxg6 {[%emt 0:00:04]} hxg6 {[%emt 0:00:03]} 22. Nh4 {[%emt 0:00:07]} Kf7 {[%emt 0:00:06]} 23. f5 {[%emt 0:00:23]} g5 {[%emt 0:00:10]} 24. Ng6 {[%emt 0:00:02]} Rxe1+ {[%emt 0:00:04]} 25. Rxe1 {[%emt 0:00:02]} Re8 {[%emt 0:00:03]} 26. Rxe8 {[%emt 0:00:03]} Kxe8 {[%emt 0:00:02]} 27. f4 {[%emt 0:00:04]} gxf4 {[%emt 0:00:04]} 28. Nxf4 {[%emt 0:00:01]} Nc7 {[%emt 0:00:03]} 29. Kf2 {[%emt 0:00:05]} Nb5 {[%emt 0:00:04]} 30. Ke3 {[%emt 0:00:03]} Nd6 {[%emt 0:00:06]} 31. Ne6 {[%emt 0:00:24]} Kf7 {[%emt 0:00:05]} 32. Kf4 {[%emt 0:00:10]} b6 {[%emt 0:00:18]} 33. Nd8+ {[%emt 0:00:02]} Kf8 {[%emt 0:00:03]} 34. Nxc6 {[%emt 0:00:03]} a5 {[%emt 0:00:03]} 35. Nd8 {[%emt 0:00:17]} Nc4 {[%emt 0:00:04]} 36. Ne6+ {[%emt 0:00:06]} Kf7 {[%emt 0:00:03]} 37. Nc7 {[%emt 0:00:07]} Nxb2 {[%emt 0:00:11]} 38. Nxd5 {[%emt 0:00:01]} b5 {[%emt 0:00:02]} 39. Nc3 {[%emt 0:00:11]} b4 {[%emt 0:00:06]} 40. axb4 {[%emt 0:00:01]} axb4 {[%emt 0:00:02]} 41. Nd5 {[%emt 0:00:02]} Nc4 {[%emt 0:00:08]} 42. Nxb4 {[%emt 0:00:02]} g6 {[%emt 0:00:02]} 43. fxg6+ {[%emt 0:00:03]} Kxg6 {[%emt 0:00:02]} 44. d5 {[%emt 0:00:03]} Kf7 {[%emt 0:00:02]} 45. g4 {[%emt 0:00:02]} Nd6 {[%emt 0:00:04]} 46. Nd3 {[%emt 0:00:03]} Nb7 {[%emt 0:00:03]} 47. c4 {[%emt 0:00:01]} Nc5 {[%emt 0:00:04]} 48. Nxc5 {[%emt 0:00:02]} Ke7 {[%emt 0:00:02]} 49. Ne4 {[%emt 0:00:01]} Kf7 {[%emt 0:00:02]} 50. d6 {[%emt 0:00:01]} 1-0

[Event "Queens Festival Final Team 2022"]
[Site "Tornelo"]
[Date "2022.06.26"]
[Round "1.5"]
[White "Banda Natalie Katlo"]
[Black "Khezrian, Nooralzahra"]
[Result "1/2-1/2"]
[ECO "A45"]
[WhiteElo "1629"]
[BlackElo "1269"]
[Annotator "NA RC"]
[PlyCount "30"]
[EventDate "2022.06.24"]
[EventType "team-tourn"]
[EventCountry "NET"]
[SourceTitle "playchess.com"]
[Source "ChessBase"]
[SourceQuality "1"]
[WhiteTeam "Botswana"]
[BlackTeam "Iran"]
[WhiteTeamCountry "BOT"]
[BlackTeamCountry "IRI"]
[TimeControl "180+2"]

1. d4 {[%emt 0:00:02]} Nf6 {[%emt 0:00:05]} 2. Bg5 {[%emt 0:00:03]} g6 {[%emt 0:00:03]} 3. Bxf6 {[%emt 0:00:02]} exf6 {[%emt 0:00:02]} 4. e3 {[%emt 0:00:02]} Bg7 {[%emt 0:00:02]} 5. Bd3 {[%emt 0:00:02]} O-O {[%emt 0:00:08]} 6. h4 {[%emt 0:00:06]} h5 {[%emt 0:00:03]} 7. g4 {[%emt 0:00:08]} hxg4 {[%emt 0:00:27]} 8. Qxg4 {[%emt 0:00:05]} d6 {[%emt 0:00:10]} 9. Qg3 {[%emt 0:00:08]} Qd7 {[%emt 0:00:46]} 10. h5 {[%emt 0:00:07]} gxh5 {[%emt 0:00:04]} 11. Rxh5 {[%emt 0:00:08]} Qg4 {[%emt 0:00:01]} 12. Bh7+ {[%emt 0:00:05]} Kh8 {[%emt 0:00:09]} 13. Bg6+ {[%emt 0:00:02]} Kg8 {[%emt 0:00:03]} 14. Bh7+ {[%emt 0:00:49]} Kh8 {[%emt 0:00:03]} 15. Bg6+ {[%emt 0:00:16]} Kg8 {[%emt 0:00:02]} 1/2-1/2

[Event "Queens Festival Final Team 2022"]
[Site "Tornelo"]
[Date "2022.06.26"]
[Round "1.5"]
[White "Moshoboro Arona"]
[Black "Masoumi, Sahar"]
[Result "0-1"]
[ECO "E73"]
[WhiteElo "1555"]
[BlackElo "2004"]
[Annotator "NA RC"]
[PlyCount "122"]
[EventDate "2022.06.24"]
[EventType "team-tourn"]
[EventCountry "NET"]
[SourceTitle "playchess.com"]
[Source "ChessBase"]
[SourceQuality "1"]
[WhiteTeam "Botswana"]
[BlackTeam "Iran"]
[WhiteTeamCountry "BOT"]
[BlackTeamCountry "IRI"]
[TimeControl "180+2"]

1. d4 {[%emt 0:00:02]} Nf6 {[%emt 0:00:04]} 2. c4 {[%emt 0:00:05]} g6 {[%emt 0:00:02]} 3. Nc3 {[%emt 0:00:02]} Bg7 {[%emt 0:00:01]} 4. e4 {[%emt 0:00:02]} d6 {[%emt 0:00:01]} 5. Be3 {[%emt 0:00:02]} O-O {[%emt 0:00:01]} 6. Be2 {[%emt 0:00:02]} Na6 {[%emt 0:00:07]} 7. Qd2 {[%emt 0:00:05]} e5 {[%emt 0:00:03]} 8. d5 {[%emt 0:00:03]} Nc5 {[%emt 0:00:01]} 9. f3 {[%emt 0:00:10]} a5 {[%emt 0:00:04]} 10. g4 {[%emt 0:00:03]} Bd7 {[%emt 0:00:05]} 11. h4 {[%emt 0:00:03]} Ne8 {[%emt 0:00:07]} 12. Bh6 {[%emt 0:00:15]} f5 {[%emt 0:00:12]} 13. exf5 {[%emt 0:00:20]} gxf5 {[%emt 0:00:02]} 14. O-O-O {[%emt 0:00:05]} f4 {[%emt 0:00:08]} 15. Bg5 {[%emt 0:00:03]} Nf6 {[%emt 0:00:08]} 16. Nh3 {[%emt 0:00:03]} a4 {[%emt 0:00:08]} 17. Rdg1 {[%emt 0:00:04]} Qb8 {[%emt 0:00:11]} 18. Nf2 {[%emt 0:00:04]} Qa7 {[%emt 0:00:04]} 19. h5 {[%emt 0:00:03]} a3 {[%emt 0:00:08]} 20. b3 {[%emt 0:00:06]} Nxb3+ {[%emt 0:00:08]} 21. axb3 {[%emt 0:00:06]} a2 {[%emt 0:00:04]} 22. Kc2 {[%emt 0:00:06]} Qxf2 {[%emt 0:00:04]} 23. Bh4 {[%emt 0:00:20]} Qd4 {[%emt 0:00:07]} 24. Qxd4 {[%emt 0:00:11]} exd4 {[%emt 0:00:02]} 25. Bxf6 {[%emt 0:00:05]} Bxf6 {[%emt 0:00:03]} 26. Ne4 {[%emt 0:00:02]} d3+ {[%emt 0:00:02]} 27. Bxd3 {[%emt 0:00:03]} a1=Q {[%emt 0:00:03]} 28. Rxa1 {[%emt 0:00:04]} Bxa1 {[%emt 0:00:01]} 29. Nc3 {[%emt 0:00:06]} Bxc3 {[%emt 0:00:06]} 30. Kxc3 {[%emt 0:00:01]} Ra2 {[%emt 0:00:02]} 31. Rf1 {[%emt 0:00:03]} Rfa8 {[%emt 0:00:05]} 32. Bc2 {[%emt 0:00:02]} Ra1 {[%emt 0:00:04]} 33. Rf2 {[%emt 0:00:03]} Re1 {[%emt 0:00:03]} 34. Kd2 {[%emt 0:00:04]} Raa1 {[%emt 0:00:04]} 35. Kc3 {[%emt 0:00:03]} Rf1 {[%emt 0:00:06]} 36. Re2 {[%emt 0:00:05]} Rae1 {[%emt 0:00:01]} 37. Rd2 {[%emt 0:00:04]} Rxf3+ {[%emt 0:00:02]} 38. Kb4 {[%emt 0:00:02]} Bxg4 {[%emt 0:00:04]} 39. Rg2 {[%emt 0:00:05]} Rg3 {[%emt 0:00:02]} 40. Rf2 {[%emt 0:00:02]} f3 {[%emt 0:00:01]} 41. Rd2 {[%emt 0:00:11]} Rg2 {[%emt 0:00:04]} 42. Rd4 {[%emt 0:00:05]} f2 {[%emt 0:00:06]} 43. Bd3 {[%emt 0:00:08]} f1=Q {[%emt 0:00:03]} 44. Bxf1 {[%emt 0:00:03]} Rxf1 {[%emt 0:00:01]} 45. Re4 {[%emt 0:00:02]} Bxh5 {[%emt 0:00:03]} 46. Re7 {[%emt 0:00:04]} Rg7 {[%emt 0:00:02]} 47. Re4 {[%emt 0:00:03]} Rb1 {[%emt 0:00:03]} 48. Rh4 {[%emt 0:00:04]} Bd1 {[%emt 0:00:02]} 49. Rh3 {[%emt 0:00:03]} Rxb3+ {[%emt 0:00:02]} 50. Rxb3 {[%emt 0:00:03]} Bxb3 {[%emt 0:00:02]} 51. Kxb3 {[%emt 0:00:01]} h5 {[%emt 0:00:01]} 52. Kc3 {[%emt 0:00:02]} h4 {[%emt 0:00:01]} 53. Kd3 {[%emt 0:00:02]} h3 {[%emt 0:00:01]} 54. Ke3 {[%emt 0:00:02]} h2 {[%emt 0:00:01]} 55. Kf2 {[%emt 0:00:01]} h1=Q {[%emt 0:00:03]} 56. Ke3 {[%emt 0:00:02]} Rf7 {[%emt 0:00:01]} 57. Kd4 {[%emt 0:00:02]} Qd1+ {[%emt 0:00:03]} 58. Kc3 {[%emt 0:00:01]} Rf3+ {[%emt 0:00:02]} 59. Kb4 {[%emt 0:00:02]} Qb1+ {[%emt 0:00:02]} 60. Ka4 {[%emt 0:00:05]} Qa2+ {[%emt 0:00:05]} 61. Kb4 {[%emt 0:00:03]} Rb3# {[%emt 0:00:02]} 0-1

[Event "Queens Festival Final Team 2022"]
[Site "Tornelo"]
[Date "2022.06.26"]
[Round "1.5"]
[White "khezrian, Neda"]
[Black "Marape, Naledi"]
[Result "0-1"]
[ECO "E61"]
[WhiteElo "1056"]
[BlackElo "1707"]
[Annotator "NA RC"]
[PlyCount "92"]
[EventDate "2022.06.24"]
[EventType "team-tourn"]
[EventCountry "NET"]
[SourceTitle "playchess.com"]
[Source "ChessBase"]
[SourceQuality "1"]
[WhiteTeam "Iran"]
[BlackTeam "Botswana"]
[WhiteTeamCountry "IRI"]
[BlackTeamCountry "BOT"]
[TimeControl "180+2"]

1. d4 {[%emt 0:00:02]} Nf6 {[%emt 0:00:09]} 2. Nf3 {[%emt 0:00:07]} g6 {[%emt 0:00:04]} 3. c4 {[%emt 0:00:02]} Bg7 {[%emt 0:00:04]} 4. Nc3 {[%emt 0:00:01]} O-O {[%emt 0:00:06]} 5. Bf4 {[%emt 0:00:02]} d6 {[%emt 0:00:02]} 6. e3 {[%emt 0:00:13]} Nbd7 {[%emt 0:00:09]} 7. Be2 {[%emt 0:00:09]} Re8 {[%emt 0:00:15]} 8. Bg3 {[%emt 0:00:08]} h5 {[%emt 0:00:38]} 9. h3 {[%emt 0:00:12]} c6 {[%emt 0:00:11]} 10. O-O {[%emt 0:00:05]} d5 {[%emt 0:00:02]} 11. cxd5 {[%emt 0:00:04]} Nxd5 {[%emt 0:00:09]} 12. Bc4 {[%emt 0:00:18]} N7b6 {[%emt 0:00:09]} 13. Bb3 {[%emt 0:00:04]} Nxc3 {[%emt 0:00:08]} 14. bxc3 {[%emt 0:00:03]} Nd5 {[%emt 0:00:04]} 15. Qc1 {[%emt 0:00:38]} Bf5 {[%emt 0:00:15]} 16. Re1 {[%emt 0:00:06]} Nf6 {[%emt 0:00:05]} 17. Bc2 {[%emt 0:00:12]} Ne4 {[%emt 0:00:05]} 18. Bd3 {[%emt 0:00:22]} Nxg3 {[%emt 0:00:04]} 19. Bxf5 {[%emt 0:00:07]} Nxf5 {[%emt 0:00:04]} 20. e4 {[%emt 0:00:04]} Nd6 {[%emt 0:00:04]} 21. e5 {[%emt 0:00:02]} Nf5 {[%emt 0:00:07]} 22. Rb1 {[%emt 0:00:06]} Qc7 {[%emt 0:00:06]} 23. Qd2 {[%emt 0:00:20]} Rad8 {[%emt 0:00:07]} 24. Rbd1 {[%emt 0:00:04]} e6 {[%emt 0:00:04]} 25. Qf4 {[%emt 0:00:06]} c5 {[%emt 0:00:10]} 26. Qc1 {[%emt 0:00:08]} cxd4 {[%emt 0:00:04]} 27. cxd4 {[%emt 0:00:05]} Qxc1 {[%emt 0:00:04]} 28. Rxc1 {[%emt 0:00:01]} Nxd4 {[%emt 0:00:04]} 29. Nxd4 {[%emt 0:00:03]} Rxd4 {[%emt 0:00:04]} 30. Rc7 {[%emt 0:00:02]} Rb8 {[%emt 0:00:09]} 31. Rec1 {[%emt 0:00:02]} Rdd8 {[%emt 0:00:05]} 32. Re1 {[%emt 0:00:04]} Rbc8 {[%emt 0:00:04]} 33. Rxc8 {[%emt 0:00:02]} Rxc8 {[%emt 0:00:03]} 34. Rd1 {[%emt 0:00:01]} Rc7 {[%emt 0:00:03]} 35. Rd8+ {[%emt 0:00:02]} Kh7 {[%emt 0:00:02]} 36. Rd2 {[%emt 0:00:02]} Bxe5 {[%emt 0:00:02]} 37. Re2 {[%emt 0:00:01]} Bg7 {[%emt 0:00:02]} 38. Rb2 {[%emt 0:00:02]} e5 {[%emt 0:00:01]} 39. Rb4 {[%emt 0:00:03]} Re7 {[%emt 0:00:01]} 40. Kf1 {[%emt 0:00:03]} e4 {[%emt 0:00:02]} 41. Ke2 {[%emt 0:00:02]} a5 {[%emt 0:00:02]} 42. Ra4 {[%emt 0:00:02]} b5 {[%emt 0:00:03]} 43. Rxa5 {[%emt 0:00:02]} b4 {[%emt 0:00:01]} 44. Rb5 {[%emt 0:00:01]} Bc3 {[%emt 0:00:03]} 45. Ke3 {[%emt 0:00:02]} f5 {[%emt 0:00:03]} 46. Rb6 {[%emt 0:00:05]} Ra7 {[%emt 0:00:02]} 0-1

[Event "Queens Festival Final Team 2022"]
[Site "Tornelo"]
[Date "2022.06.26"]
[Round "1.6"]
[White "Ovezdurdiyeva, Jemal"]
[Black "Shah, Riya"]
[Result "1-0"]
[ECO "A43"]
[WhiteElo "2061"]
[BlackElo "1559"]
[Annotator "NA RC"]
[PlyCount "89"]
[EventDate "2022.06.24"]
[EventType "team-tourn"]
[EventCountry "NET"]
[SourceTitle "playchess.com"]
[Source "ChessBase"]
[SourceQuality "1"]
[WhiteTeam "Turkmenistan"]
[BlackTeam "Kenya"]
[WhiteTeamCountry "TKM"]
[BlackTeamCountry "KEN"]
[TimeControl "180+2"]

1. d4 {[%emt 0:00:02]} g6 {[%emt 0:00:04]} 2. c4 {[%emt 0:00:02]} Bg7 {[%emt 0:00:02]} 3. Nc3 {[%emt 0:00:01]} c5 {[%emt 0:00:01]} 4. d5 {[%emt 0:00:03]} d6 {[%emt 0:00:02]} 5. h3 {[%emt 0:00:04]} f5 {[%emt 0:00:03]} 6. e4 {[%emt 0:00:06]} fxe4 {[%emt 0:00:09]} 7. Nxe4 {[%emt 0:00:02]} Nf6 {[%emt 0:00:01]} 8. Ng3 {[%emt 0:00:13]} O-O {[%emt 0:00:07]} 9. Nf3 {[%emt 0:00:02]} e6 {[%emt 0:00:03]} 10. dxe6 {[%emt 0:00:04]} Bxe6 {[%emt 0:00:01]} 11. Be2 {[%emt 0:00:02]} Nc6 {[%emt 0:00:12]} 12. O-O {[%emt 0:00:04]} Qe7 {[%emt 0:00:11]} 13. Be3 {[%emt 0:00:10]} Rad8 {[%emt 0:00:03]} 14. Ng5 {[%emt 0:00:04]} Ne5 {[%emt 0:00:13]} 15. Nxe6 {[%emt 0:00:05]} Qxe6 {[%emt 0:00:01]} 16. Qb3 {[%emt 0:00:02]} b6 {[%emt 0:00:03]} 17. Rad1 {[%emt 0:00:03]} Kh8 {[%emt 0:00:23]} 18. Rfe1 {[%emt 0:00:07]} Qf7 {[%emt 0:00:04]} 19. Rd2 {[%emt 0:00:08]} d5 {[%emt 0:00:16]} 20. cxd5 {[%emt 0:00:45]} Nxd5 {[%emt 0:00:10]} 21. Red1 {[%emt 0:00:08]} Nxe3 {[%emt 0:00:48]} 22. Qxf7 {[%emt 0:00:03]} Nxf7 {[%emt 0:00:04]} 23. fxe3 {[%emt 0:00:05]} Rxd2 {[%emt 0:00:05]} 24. Rxd2 {[%emt 0:00:00]} Rd8 {[%emt 0:00:05]} 25. Rxd8+ {[%emt 0:00:11]} Nxd8 {[%emt 0:00:01]} 26. b3 {[%emt 0:00:01]} Nc6 {[%emt 0:00:03]} 27. Ne4 {[%emt 0:00:17]} Nb4 {[%emt 0:00:02]} 28. a4 {[%emt 0:00:10]} Nc2 {[%emt 0:00:02]} 29. Kf2 {[%emt 0:00:03]} Na1 {[%emt 0:00:05]} 30. Bc4 {[%emt 0:00:02]} Nc2 {[%emt 0:00:07]} 31. Nd6 {[%emt 0:00:04]} Be5 {[%emt 0:00:04]} 32. Nf7+ {[%emt 0:00:03]} Kg7 {[%emt 0:00:03]} 33. Nxe5 {[%emt 0:00:01]} Kf6 {[%emt 0:00:02]} 34. Nc6 {[%emt 0:00:01]} a5 {[%emt 0:00:02]} 35. Nb8 {[%emt 0:00:03]} Na1 {[%emt 0:00:04]} 36. Nd7+ {[%emt 0:00:02]} Kf5 {[%emt 0:00:05]} 37. Nxb6 {[%emt 0:00:01]} Nc2 {[%emt 0:00:01]} 38. Nd7 {[%emt 0:00:04]} Nb4 {[%emt 0:00:03]} 39. Nxc5 {[%emt 0:00:01]} Nc6 {[%emt 0:00:01]} 40. Nb7 {[%emt 0:00:04]} Ke4 {[%emt 0:00:03]} 41. Ke2 {[%emt 0:00:05]} h6 {[%emt 0:00:04]} 42. Bf7 {[%emt 0:00:03]} g5 {[%emt 0:00:02]} 43. Bh5 {[%emt 0:00:01]} Kd5 {[%emt 0:00:02]} 44. Bf3+ {[%emt 0:00:01]} Ke6 {[%emt 0:00:03]} 45. Bxc6 {[%emt 0:00:01]} 1-0

[Event "Queens Festival Final Team 2022"]
[Site "Tornelo"]
[Date "2022.06.26"]
[Round "1.6"]
[White "Agajanova, Meryem"]
[Black "Kosgey Sheila Jerop"]
[Result "1-0"]
[ECO "E67"]
[WhiteElo "1783"]
[BlackElo "1242"]
[Annotator "NA RC"]
[PlyCount "103"]
[EventDate "2022.06.24"]
[EventType "team-tourn"]
[EventCountry "NET"]
[SourceTitle "playchess.com"]
[Source "ChessBase"]
[SourceQuality "1"]
[WhiteTeam "Turkmenistan"]
[BlackTeam "Kenya"]
[WhiteTeamCountry "TKM"]
[BlackTeamCountry "KEN"]
[TimeControl "180+2"]

1. d4 {[%emt 0:00:02]} g6 {[%emt 0:00:06]} 2. Nf3 {[%emt 0:00:02]} Bg7 {[%emt 0:00:01]} 3. g3 {[%emt 0:00:02]} d6 {[%emt 0:00:02]} 4. Bg2 {[%emt 0:00:02]} Nd7 {[%emt 0:00:02]} 5. O-O {[%emt 0:00:02]} Ngf6 {[%emt 0:00:05]} 6. c4 {[%emt 0:00:01]} O-O {[%emt 0:00:01]} 7. Qc2 {[%emt 0:00:02]} Re8 {[%emt 0:00:02]} 8. Rd1 {[%emt 0:00:03]} e5 {[%emt 0:00:02]} 9. dxe5 {[%emt 0:00:02]} dxe5 {[%emt 0:00:01]} 10. Nc3 {[%emt 0:00:07]} c6 {[%emt 0:00:02]} 11. b3 {[%emt 0:00:01]} Qa5 {[%emt 0:00:08]} 12. Bb2 {[%emt 0:00:04]} Qc7 {[%emt 0:00:18]} 13. Rac1 {[%emt 0:00:08]} Nf8 {[%emt 0:00:09]} 14. Ba3 {[%emt 0:00:02]} h5 {[%emt 0:00:07]} 15. Bd6 {[%emt 0:00:05]} Qa5 {[%emt 0:00:28]} 16. Bxe5 {[%emt 0:00:15]} Bf5 {[%emt 0:00:08]} 17. Qb2 {[%emt 0:00:30]} Rad8 {[%emt 0:00:06]} 18. h4 {[%emt 0:00:09]} Rxd1+ {[%emt 0:00:17]} 19. Rxd1 {[%emt 0:00:02]} Rxe5 {[%emt 0:00:02]} 20. Nxe5 {[%emt 0:00:05]} Qxe5 {[%emt 0:00:03]} 21. Na4 {[%emt 0:00:23]} Qxb2 {[%emt 0:00:07]} 22. Nxb2 {[%emt 0:00:03]} Ne4 {[%emt 0:00:10]} 23. Nd3 {[%emt 0:00:35]} Nc3 {[%emt 0:00:06]} 24. Rd2 {[%emt 0:00:02]} Nxe2+ {[%emt 0:00:07]} 25. Rxe2 {[%emt 0:00:01]} Bxd3 {[%emt 0:00:02]} 26. Re7 {[%emt 0:00:02]} Bb1 {[%emt 0:00:08]} 27. a3 {[%emt 0:00:04]} b5 {[%emt 0:00:09]} 28. Bxc6 {[%emt 0:00:12]} bxc4 {[%emt 0:00:04]} 29. bxc4 {[%emt 0:00:01]} Bd4 {[%emt 0:00:08]} 30. Bd5 {[%emt 0:00:03]} Bf5 {[%emt 0:00:07]} 31. Bxf7+ {[%emt 0:00:06]} Kh8 {[%emt 0:00:06]} 32. Bd5 {[%emt 0:00:16]} Bc5 {[%emt 0:00:04]} 33. Re8 {[%emt 0:00:06]} Kg7 {[%emt 0:00:04]} 34. a4 {[%emt 0:00:04]} Nh7 {[%emt 0:00:03]} 35. Rb8 {[%emt 0:00:04]} Nf6 {[%emt 0:00:02]} 36. Rb7+ {[%emt 0:00:01]} Kh6 {[%emt 0:00:14]} 37. Bf3 {[%emt 0:00:02]} Be4 {[%emt 0:00:04]} 38. Bxe4 {[%emt 0:00:07]} Nxe4 {[%emt 0:00:02]} 39. Rf7 {[%emt 0:00:07]} Nd6 {[%emt 0:00:04]} 40. Rc7 {[%emt 0:00:03]} Bb6 {[%emt 0:00:05]} 41. Rc6 {[%emt 0:00:02]} Ne4 {[%emt 0:00:03]} 42. Kg2 {[%emt 0:00:03]} Nc5 {[%emt 0:00:05]} 43. a5 {[%emt 0:00:03]} Bxa5 {[%emt 0:00:05]} 44. Rxc5 {[%emt 0:00:01]} Bb6 {[%emt 0:00:02]} 45. Rc8 {[%emt 0:00:02]} Kg7 {[%emt 0:00:02]} 46. c5 {[%emt 0:00:02]} Ba5 {[%emt 0:00:04]} 47. c6 {[%emt 0:00:01]} Kf6 {[%emt 0:00:02]} 48. c7 {[%emt 0:00:02]} Ke7 {[%emt 0:00:02]} 49. Re8+ {[%emt 0:00:01]} Kxe8 {[%emt 0:00:03]} 50. c8=Q+ {[%emt 0:00:02]} Ke7 {[%emt 0:00:02]} 51. Qc5+ {[%emt 0:00:02]} Kd7 {[%emt 0:00:05]} 52. Qxa5 {[%emt 0:00:01]} 1-0

[Event "Queens Festival Final Team 2022"]
[Site "Tornelo"]
[Date "2022.06.26"]
[Round "1.6"]
[White "Mwendwa, Triza"]
[Black "Shohradowa, Lala"]
[Result "0-1"]
[ECO "B13"]
[WhiteElo "1470"]
[BlackElo "1856"]
[Annotator "NA RC"]
[PlyCount "54"]
[EventDate "2022.06.24"]
[EventType "team-tourn"]
[EventCountry "NET"]
[SourceTitle "playchess.com"]
[Source "ChessBase"]
[SourceQuality "1"]
[WhiteTeam "Kenya"]
[BlackTeam "Turkmenistan"]
[WhiteTeamCountry "KEN"]
[BlackTeamCountry "TKM"]
[TimeControl "180+2"]

1. d4 {[%emt 0:00:02]} Nf6 {[%emt 0:00:05]} 2. Bf4 {[%emt 0:00:05]} c5 {[%emt 0:00:04]} 3. e3 {[%emt 0:00:09]} cxd4 {[%emt 0:00:02]} 4. exd4 {[%emt 0:00:02]} d5 {[%emt 0:00:01]} 5. Nf3 {[%emt 0:00:04]} Nc6 {[%emt 0:00:02]} 6. c3 {[%emt 0:00:06]} Bf5 {[%emt 0:00:02]} 7. Nbd2 {[%emt 0:00:03]} e6 {[%emt 0:00:04]} 8. Qb3 {[%emt 0:00:04]} Qd7 {[%emt 0:00:04]} 9. Bb5 {[%emt 0:00:05]} Bd6 {[%emt 0:00:06]} 10. Ne5 {[%emt 0:00:08]} Bxe5 {[%emt 0:00:03]} 11. dxe5 {[%emt 0:00:11]} Nh5 {[%emt 0:00:06]} 12. Bg3 {[%emt 0:00:16]} O-O {[%emt 0:00:05]} 13. f4 {[%emt 0:00:11]} Nxg3 {[%emt 0:00:05]} 14. hxg3 {[%emt 0:00:03]} a6 {[%emt 0:00:02]} 15. Be2 {[%emt 0:00:07]} d4 {[%emt 0:00:02]} 16. c4 {[%emt 0:00:11]} d3 {[%emt 0:00:02]} 17. Bf3 {[%emt 0:00:04]} Nd4 {[%emt 0:00:03]} 18. Qc3 {[%emt 0:00:21]} Nc2+ {[%emt 0:00:02]} 19. Kf2 {[%emt 0:00:05]} Nxa1 {[%emt 0:00:03]} 20. Rxa1 {[%emt 0:00:04]} Rac8 {[%emt 0:00:02]} 21. b3 {[%emt 0:00:07]} b5 {[%emt 0:00:03]} 22. g4 {[%emt 0:00:30]} Bg6 {[%emt 0:00:03]} 23. Rh1 {[%emt 0:00:12]} bxc4 {[%emt 0:00:03]} 24. Nxc4 {[%emt 0:00:03]} Rfd8 {[%emt 0:00:22]} 25. Qa5 {[%emt 0:00:06]} Qd4+ {[%emt 0:00:05]} 26. Ke1 {[%emt 0:00:12]} d2+ {[%emt 0:00:10]} 27. Qxd2 {[%emt 0:00:16]} Qa1+ {[%emt 0:00:09]} 0-1